fUSD/lending_fUSD_20260130
["ID","MTS","AMOUNT","RATE_DAILY","PERIOD"]
[404073602,1769787040246,-500.0,0.00012895,2]
[404073603,1769787040255,-500.0,0.00012895,2]
[404073604,1769787040266,-2001502.50944133,0.00012896,2]
[404073605,1769787040276,-9999.99,0.00012896,2]
[404073606,1769787040287,-9999.99,0.00012896,2]
[404073607,1769787040297,-9999.99,0.00012896,2]
[404073608,1769787040306,-999.99,0.00012896,2]
[404073609,1769787040315,-514.51,0.00012896,2]
[404073610,1769787040325,-3826.81,0.00012896,2]
[404073611,1769787040335,-464.49,0.00012896,2]
[404073612,1769787040344,-4119.6099,0.00012897,2]
[404073613,1769787040353,-28503.9107,0.00012897,2]
[404073614,1769787040363,-346.6804,0.00012897,2]
[404073615,1769787040372,-299.99,0.00012897,2]
[404073616,1769787040381,-150.99,0.00012897,2]
[404073617,1769787040390,-150.99,0.00012897,2]
[404073618,1769787040404,-9154.49,0.00012897,2]
[404073619,1769787040413,-3660.02,0.00012897,2]
[404073620,1769787040423,-310.7,0.00012897,2]
[404073621,1769787040433,-152.71796878,0.00012897,2]
[404073622,1769787040443,-681.72,0.00012897,2]
[404073623,1769787040452,-9999.99,0.00012897,2]
[404073624,1769787040462,-42908.46,0.00012897,2]
[404073625,1769787040474,-891.65825359,0.00012899,2]
[404073626,1769787040484,-221.97,0.000129,2]
[404073627,1769787040494,-210.83,0.00012902,2]
[404073628,1769787040503,-151.0,0.00012989,2]
[404073629,1769787040512,-151.0,0.00012989,2]
[404073630,1769787040522,-151.0,0.00012989,2]
[404073631,1769787040531,-151.0,0.00012989,2]
[404073632,1769787040551,-151.0,0.00012989,2]
[404073633,1769787040562,-151.0,0.00012989,2]
[404073634,1769787040572,-151.0,0.00012989,2]
[404073635,1769787040582,-151.0,0.00012989,2]
[404073636,1769787040592,-151.0,0.00012989,2]
[404073637,1769787040602,-151.0,0.00012989,2]
[404073638,1769787040612,-151.0,0.00012989,2]
[404073639,1769787040624,-151.0,0.00012989,2]
[404073640,1769787040635,-151.0,0.00012989,2]
[404073641,1769787040645,-151.0,0.00012989,2]
[404073643,1769787040657,-151.0,0.00012989,2]
[404073645,1769787040667,-151.0,0.00012989,2]
[404073647,1769787040677,-151.0,0.00012989,2]
[404073649,1769787040687,-151.0,0.00012989,2]
[404073650,1769787040698,-151.0,0.00012989,2]
[404073651,1769787040708,-151.0,0.00012989,2]
[404073652,1769787040718,-500.0,0.00012989,2]
[404073653,1769787040729,-1000.0,0.00012997,2]
[404073654,1769787040741,-1410.29670637,0.00013,2]
[404073655,1769787040752,-500.0,0.00013263,2]
[404073657,1769787040763,-500.0,0.00013287,2]
[404073659,1769787040777,-14773.22811729,0.00013363,2]
[404073661,1769787040787,-21568.63236143,0.00013363,2]
[404073663,1769787040799,-1716.17343243,0.00013525,2]
[404073665,1769787040809,-500.0,0.00013537,2]
[404073667,1769787040819,-175.0,0.00013544,2]
[404073669,1769787040829,-210.83,0.00013619,2]
[404073671,1769787040841,-728.40538129,0.00013647,2]
[404073673,1769787040851,-229.0,0.00013655,2]
[404073677,1769787040861,-500.0,0.00013698,2]
[404073679,1769787040871,-500.0,0.00013698,2]
[404073681,1769787040880,-500.0,0.00013698,2]
[404073682,1769787040889,-370.45918944,0.00013698,2]
[404073685,1769787040901,-500.0,0.00013698,2]
[404073687,1769787040911,-502.11575154,0.00013698,2]
[404073689,1769787040921,-500.0,0.00013698,2]
[404073691,1769787040931,-500.0,0.00013698,2]
[404073693,1769787040941,-500.0,0.00013698,2]
[404073695,1769787040950,-271.3035718,0.00013698,2]
[404073697,1769787040960,-500.0,0.00013698,2]
[404073699,1769787040970,-519.46286686,0.00013698,2]
[404073701,1769787040980,-500.0,0.00013698,2]
[404073702,1769787040989,-500.0,0.00013698,2]
[404073703,1769787040999,-500.0,0.00013698,2]
[404073704,1769787041009,-500.0,0.00013698,2]
[404073705,1769787041019,-500.0,0.00013699,2]
[404073706,1769787041029,-500.0,0.00013699,2]
[404073707,1769787041039,-500.0,0.00013699,2]
[404073708,1769787041049,-500.0,0.00013699,2]
[404073709,1769787041060,-245.77487183,0.00013699,2]
[404073710,1769787041070,-434.79,0.00013796,2]
[404073711,1769787041080,-500.0,0.00013811,2]
[404073712,1769787041089,-1146.0,0.00013842,2]
[404073713,1769787041099,-995.0,0.00013869,2]
[404073714,1769787041109,-388.0,0.00013897,2]
[404073715,1769787041118,-1692.0,0.00013925,2]
[404073716,1769787041128,-14773.22811729,0.0001393,2]
[404073717,1769787041138,-21568.63236143,0.0001393,2]
[404073718,1769787041147,-348.0,0.00013952,2]
[404073719,1769787041159,-209.0,0.0001398,2]
[404073720,1769787041169,-255.0,0.00014004,2]
[404073721,1769787041178,-300.0,0.00014005,2]
[404073722,1769787041188,-2500.0,0.00014005,2]
[404073723,1769787041198,-502.0,0.00014007,2]
[404073724,1769787041208,-524.0,0.00014035,2]
[404073725,1769787041217,-1875.0,0.00014063,2]
[404073726,1769787041227,-603.8823062,0.00014072,2]
[404073727,1769787041236,-1680.0,0.00014075,2]
[404073728,1769787041246,-500.0,0.00014085,2]
[404073729,1769787041256,-1294.0,0.0001409,2]
[404073730,1769787041265,-1622.0,0.00014118,2]
[404073731,1769787041274,-525.0,0.00014146,2]
[404073732,1769787041284,-1400.0,0.00014173,2]
[404073733,1769787041294,-250.0,0.00014185,2]
[404073734,1769787041305,-250.0,0.00014185,2]
[404073735,1769787041315,-250.0,0.00014185,2]
[404073736,1769787041325,-1230.0,0.00014201,2]
[404073737,1769787041334,-422.0,0.00014225,2]
[404073738,1769787041344,-935.0,0.00014228,2]
[404073739,1769787041354,-380.0,0.00014254,2]
[404073740,1769787041364,-1716.17343243,0.00014254,2]
[404073741,1769787041373,-183.0,0.00014256,2]
[404073742,1769787041383,-482.0,0.00014282,2]
[404073743,1769787041392,-280.0,0.00014311,2]
[404073744,1769787041404,-210.83,0.00014335,2]
[404073745,1769787041414,-387.0,0.00014339,2]
[404073746,1769787041423,-3734.06647313,0.0001439,2]
[404073747,1769787041434,-14773.22811729,0.00014497,2]
[404073748,1769787041443,-21568.63236143,0.00014497,2]
[404073749,1769787041453,-728.40538129,0.00014497,2]
[404073750,1769787041462,-1371.0,0.00014688,2]
[404073751,1769787041472,-1306.84,0.00014705,2]
[404073752,1769787041481,-712.0,0.00014718,2]
[404073753,1769787041491,-874.0,0.00014747,2]
[404073754,1769787041501,-479.1,0.00014771,2]
[404073755,1769787041511,-1563.0,0.00014776,2]
[404073756,1769787041522,-1214.0,0.00014806,2]
[404073757,1769787041531,-1311.0,0.00014835,2]
[404073758,1769787041540,-151.0,0.00014883,2]
[404073759,1769787041552,-151.0,0.00014952,2]
[404073760,1769787041565,-151.0,0.00014952,2]
[404073761,1769787041575,-1716.17343243,0.00014983,2]
[404073762,1769787041585,-50334.09372164,0.00015,3]
[404073763,1769787041596,-210.83,0.00015052,2]
[404073764,1769787041606,-14773.22811729,0.00015064,2]
[404073765,1769787041616,-21568.63236143,0.00015064,2]
[404073766,1769787041627,-433.0,0.00015203,2]
[404073767,1769787041636,-603.8823062,0.00015348,2]
[404073768,1769787041646,-249.7367019,0.00015348,2]
[404073769,1769787041657,-728.40538129,0.00015348,2]
[404073770,1769787041667,-14723.77147623,0.00015351,2]
[404073771,1769787041676,-22025.88155751,0.00015351,2]
[404073772,1769787041686,-29801.7918,0.00015351,2]
[404073773,1769787042043,-183.75,0.00015416,2]
[404073774,1769787042063,-329.85,0.00015434,2]
[404073775,1769787042073,-2351.0,0.00015482,2]
[404073776,1769787042082,-14773.22811729,0.00015632,2]
[404073777,1769787042091,-21568.63236143,0.00015632,2]
[404073778,1769787042101,-1716.17343243,0.00015713,2]
[404073779,1769787042110,-210.83,0.00015769,2]
[404073780,1769787042119,-200.0,0.0001596,2]
[404073781,1769787042129,-652.99854233,0.0001596,2]
[404073782,1769787042138,-223.6899003,0.00016,2]
[404073783,1769787042147,-115989.76586697,0.00016,4]
[404073784,1769787042158,-3404.72,0.00016116,2]
[404073785,1769787042167,-441.47428755,0.00016128,2]
[404073786,1769787042177,-1000.0,0.00016135,2]
[404073787,1769787042187,-500.0,0.00016173,2]
[404073788,1769787042196,-150.0,0.00016173,2]
[404073789,1769787042206,-14773.22811729,0.00016199,2]
[404073790,1769787042215,-21568.63236143,0.00016199,2]
[404073791,1769787042225,-728.40538129,0.00016199,2]
[404073792,1769787042234,-434910.88027676,0.000162,5]
[404073793,1769787042243,-500.0,0.00016228,2]
[404073794,1769787042253,-500.0,0.00016283,2]
[404073795,1769787042262,-500.0,0.00016337,2]
[404073796,1769787042272,-377.4,0.00016373,2]
[404073797,1769787042281,-558.9380785,0.00016373,2]
[404073798,1769787042291,-164.62391136,0.00016373,2]
[404073799,1769787042300,-500.0,0.00016373,2]
[404073800,1769787042310,-500.0,0.00016373,2]
[404073801,1769787042319,-160.21943413,0.00016373,2]
[404073802,1769787042328,-500.0,0.00016373,2]
[404073803,1769787042338,-160.32431704,0.00016373,2]
[404073804,1769787042348,-500.0,0.00016373,2]
[404073805,1769787042357,-500.0,0.00016373,2]
[404073806,1769787042367,-500.0,0.00016373,2]
[404073807,1769787042376,-177.64323639,0.00016373,2]
[404073808,1769787042385,-160.21744138,0.00016373,2]
[404073809,1769787042394,-239.55126374,0.00016373,2]
[404073810,1769787042405,-500.0,0.00016373,2]
[404073811,1769787042414,-500.0,0.00016373,2]
[404073812,1769787042424,-500.0,0.00016373,2]
[404073813,1769787042436,-500.0,0.00016373,2]
[404073814,1769787042445,-217.57575976,0.00016373,2]
[404073815,1769787042454,-500.0,0.00016373,2]
[404073816,1769787042463,-500.0,0.00016373,2]
[404073817,1769787042473,-500.0,0.00016373,2]
[404073818,1769787042482,-500.0,0.00016373,2]
[404073819,1769787042491,-500.0,0.00016373,2]
[404073820,1769787042500,-500.0,0.00016373,2]
[404073821,1769787042510,-500.0,0.00016373,2]
[404073822,1769787042520,-500.0,0.00016373,2]
[404073823,1769787042529,-500.0,0.00016373,2]
[404073824,1769787042539,-500.0,0.00016373,2]
[404073825,1769787042549,-500.0,0.00016373,2]
[404073826,1769787042560,-500.0,0.00016373,2]
[404073827,1769787042570,-500.0,0.00016373,2]
[404073828,1769787042580,-500.0,0.00016373,2]
[404073829,1769787042589,-503.15498018,0.00016373,2]
[404073830,1769787042599,-163.00594696,0.00016373,2]
[404073831,1769787042611,-500.0,0.00016373,2]
[404073832,1769787042620,-500.0,0.00016373,2]
[404073833,1769787042629,-500.0,0.00016373,2]
[404073834,1769787042638,-500.60369246,0.00016373,2]
[404073835,1769787042648,-169.60462217,0.00016373,2]
[404073836,1769787042658,-500.0,0.00016373,2]
[404073837,1769787042667,-166.21493216,0.00016373,2]
[404073838,1769787042677,-500.0,0.00016392,2]
[404073839,1769787042687,-368.39,0.0001641,2]
[404073840,1769787042698,-500.0,0.00016438,2]
[404073841,1769787042709,-355.69824752,0.00016438,2]
[404073842,1769787042720,-500.0,0.00016438,2]
[404073843,1769787042730,-500.0,0.00016438,2]
[404073844,1769787042740,-500.0,0.00016438,2]
[404073845,1769787042752,-500.0,0.00016438,2]
[404073846,1769787042766,-500.0,0.00016438,2]
[404073847,1769787042776,-500.0,0.00016438,2]
[404073848,1769787042786,-500.0,0.00016438,2]
[404073849,1769787042797,-500.0,0.00016438,2]
[404073850,1769787042807,-500.0,0.00016438,2]
[404073851,1769787042816,-500.0,0.00016438,2]
[404073852,1769787042826,-500.0,0.00016438,2]
[404073853,1769787042836,-500.0,0.00016438,2]
[404073854,1769787042846,-1716.17343243,0.00016442,2]
[404073855,1769787042856,-500.0,0.00016447,2]
[404073856,1769787042865,-210.83,0.00016486,2]
[404073857,1769787042875,-500.0,0.00016502,2]
[404073858,1769787042886,-736.0,0.00016518,2]
[404073859,1769787042895,-239.8103178,0.00016557,2]
[404073860,1769787042906,-603.8823062,0.00016624,2]
[404073861,1769787042915,-806.5,0.00016648,2]
[404073862,1769787042925,-1249.9,0.00016689,2]
[404073863,1769787042935,-2833.0,0.0001672,2]
[404073864,1769787042945,-14773.22811729,0.00016766,2]
[404073865,1769787042954,-21568.63236143,0.00016766,2]
[404073866,1769787042963,-8139.56044797,0.000169,2]
[404073867,1769787042973,-429.605811,0.000169,2]
[404073868,1769787042983,-250.0,0.00016908,2]
[404073869,1769787042992,-1000.0,0.00016921,2]
[404073870,1769787043002,-503.09870012,0.00016921,2]
[404073871,1769787043012,-1000.0,0.00016921,2]
[404073872,1769787043022,-1000.0,0.00016921,2]
[404073873,1769787043031,-203.98074386,0.00016921,2]
[404073874,1769787043041,-1000.0,0.00016921,2]
[404073875,1769787043051,-1000.0,0.00016921,2]
[404073876,1769787043060,-1000.0,0.00016921,2]
[404073877,1769787043070,-459.6118856,0.00016921,2]
[404073878,1769787043079,-1000.0,0.00016921,2]
[404073879,1769787043089,-804.05633745,0.00016921,2]
[404073880,1769787043098,-1000.0,0.00016921,2]
[404073881,1769787043108,-1009.36195064,0.00016921,2]
[404073882,1769787043118,-401.53067419,0.00016921,2]
[404073883,1769787043127,-877.26188408,0.00016921,2]
[404073884,1769787043137,-1000.0,0.00016921,2]
[404073885,1769787043147,-1000.91709451,0.00016921,2]
[404073886,1769787043158,-1000.0,0.00016921,2]
[404073887,1769787043168,-1000.0,0.00016921,2]
[404073888,1769787043179,-500.0,0.00016921,2]
[404073889,1769787043188,-1000.28855452,0.00016921,2]
[404073890,1769787043198,-1000.0,0.00016921,2]
[404073891,1769787043207,-1000.0,0.00016921,2]
[404073892,1769787043218,-1000.0,0.00016921,2]
[404073893,1769787043227,-1000.79205538,0.00016921,2]
[404073894,1769787043236,-490.28446551,0.00016921,2]
[404073895,1769787043246,-1000.81154381,0.00016921,2]
[404073896,1769787043255,-165.50957456,0.0001693,2]
[404073897,1769787043266,-250.0,0.00017,2]
[404073898,1769787043276,-263.4,0.00017,2]
[404073899,1769787043286,-16166.05353687,0.00017,2]
[404073900,1769787043295,-2387.52939455,0.00017,2]
[404073901,1769787043305,-441.47428753,0.00017014,2]
[404073902,1769787043315,-3292.0,0.0001703,2]
[404073903,1769787043324,-728.40538129,0.00017049,2]
[404073904,1769787043335,-18871.81,0.00017134,2]
[404073905,1769787043346,-1716.17343243,0.00017171,2]
[404073906,1769787043357,-210.83,0.00017202,2]
[404073907,1769787043368,-14773.22811729,0.00017333,2]
[404073908,1769787043377,-21568.63236143,0.00017333,2]
[404073909,1769787043388,-225.0,0.00017333,2]
[404073910,1769787043399,-2833.0,0.0001736,2]
[404073911,1769787043412,-163.0,0.0001736,2]
[404073912,1769787043422,-2833.0,0.0001736,2]
[404073913,1769787043431,-8139.56044795,0.000174,2]
[404073914,1769787043443,-153.53,0.000174,2]
[404073915,1769787043453,-165.50957456,0.00017415,3]
[404073916,1769787043463,-1279.27,0.00017439,2]
[404073917,1769787043474,-1000.8272521,0.00017468,2]
[404073918,1769787043484,-1505.10384072,0.00017468,2]
[404073919,1769787043494,-1500.0,0.00017468,2]
[404073920,1769787043503,-1500.0,0.00017468,2]
[404073921,1769787043513,-1000.71065871,0.00017468,2]
[404073922,1769787043523,-1500.0,0.00017468,2]
[404073923,1769787043532,-1500.0,0.00017468,2]
[404073924,1769787043542,-1500.0,0.00017468,2]
[404073925,1769787043551,-206.11887871,0.00017468,2]
[404073926,1769787043561,-656.65111135,0.00017468,2]
[404073927,1769787043571,-1500.0,0.00017468,2]
[404073928,1769787043580,-1500.0,0.00017468,2]
[404073929,1769787043590,-1000.73878486,0.00017468,2]
[404073930,1769787043600,-12697.34,0.00017534,2]
[404073931,1769787043610,-3240.0,0.00017541,2]
[404073932,1769787043620,-1459.48,0.00017581,2]
[404073933,1769787043629,-303.78,0.00017581,2]
[404073934,1769787043641,-1000.0,0.00017583,2]
[404073935,1769787043651,-583.855,0.00017583,2]
[404073936,1769787043664,-2300.0,0.000176,6]
[404073937,1769787043674,-163.0,0.0001768,2]
[404073938,1769787043685,-400.0,0.000177,6]
[404073939,1769787043695,-5549.67507167,0.000178,2]
[404073940,1769787043705,-400.0,0.000178,6]
[404073941,1769787043716,-5549.67507167,0.0001785,2]
[404073942,1769787043726,-14773.22811729,0.000179,2]
[404073943,1769787043737,-400.0,0.000179,6]
[404073944,1769787043747,-603.8823062,0.000179,2]
[404073945,1769787043758,-249.7367019,0.000179,2]
[404073946,1769787043772,-1716.17343243,0.000179,2]
[404073947,1769787043782,-5549.67507167,0.000179,2]
[404073948,1769787043792,-21568.63236143,0.000179,2]
[404073949,1769787043803,-728.40538129,0.000179,2]
[404073950,1769787043813,-8139.56044795,0.000179,2]
[404073951,1769787043825,-165.50957456,0.000179,3]
[404073952,1769787043836,-441.47428753,0.000179,2]
[404073953,1769787043846,-210.83,0.00017919,2]
[404073954,1769787043856,-1252.0,0.00017937,2]
[404073955,1769787043866,-500.0,0.00017973,2]
[404073956,1769787043876,-500.0,0.00017973,2]
[404073957,1769787043886,-500.0,0.00017973,2]
[404073958,1769787043896,-500.0,0.00017973,2]
[404073959,1769787043908,-500.0,0.00017973,2]
[404073960,1769787043918,-502.07287865,0.00017973,2]
[404073961,1769787043929,-500.0,0.00017973,2]
[404073962,1769787043939,-500.0,0.00017973,2]
[404073963,1769787043949,-500.0,0.00017973,2]
[404073964,1769787043959,-500.0,0.00017973,2]
[404073965,1769787043969,-500.0,0.00017973,2]
[404073966,1769787043980,-505.87219837,0.00017973,2]
[404073967,1769787043990,-500.0,0.00017973,2]
[404073968,1769787044000,-161.90727761,0.00017973,2]
[404073969,1769787044010,-500.0,0.00017973,2]
[404073970,1769787044020,-501.03562757,0.00017973,2]
[404073972,1769787044030,-340.31348241,0.00017973,2]
[404073973,1769787044041,-500.0,0.00017973,2]
[404073974,1769787044051,-500.0,0.00017973,2]
[404073975,1769787044061,-160.00319068,0.00017973,2]
[404073976,1769787044071,-161.13076084,0.00017973,2]
[404073977,1769787044081,-161.46714206,0.00017973,2]
[404073978,1769787044092,-333.51196878,0.00017973,2]
[404073979,1769787044102,-500.0,0.00017973,2]
[404073980,1769787044112,-500.2342072,0.00017973,2]
[404073981,1769787044122,-509.35254647,0.00017973,2]
[404073982,1769787044133,-500.0,0.00017973,2]
[404073983,1769787044143,-162.07893444,0.00017973,2]
[404073984,1769787044155,-500.0,0.00017973,2]
[404073986,1769787044164,-162.64188199,0.00017973,2]
[404073988,1769787044175,-392.26050896,0.00017973,2]
[404073990,1769787044185,-500.0,0.00017973,2]
[404073992,1769787044195,-500.0,0.00017973,2]
[404073994,1769787044205,-208.78313746,0.00017973,2]
[404073996,1769787044215,-500.0,0.00017973,2]
[404073997,1769787044224,-500.78976485,0.00017973,2]
[404073999,1769787044234,-160.11295309,0.00017973,2]
[404074001,1769787044244,-500.0,0.00017973,2]
[404074002,1769787044253,-160.13080306,0.00017973,2]
[404074004,1769787044263,-210.27851574,0.00017973,2]
[404074006,1769787044272,-432.02224032,0.00017973,2]
[404074008,1769787044282,-158.22969695,0.00017973,2]
[404074010,1769787044292,-500.0,0.00017973,2]
[404074012,1769787044302,-500.0,0.00017973,2]
[404074014,1769787044312,-500.0,0.00017973,2]
[404074016,1769787044322,-284.37159555,0.00017973,2]
[404074018,1769787044332,-500.0,0.00017973,2]
[404074020,1769787044341,-160.23001291,0.00017973,2]
[404074022,1769787044351,-500.0,0.00017973,2]
[404074024,1769787044361,-500.0,0.00017973,2]
[404074026,1769787044371,-309.21369256,0.00017973,2]
[404074027,1769787044381,-500.0,0.00017973,2]
[404074028,1769787044393,-500.29869688,0.00017973,2]
[404074029,1769787044404,-500.0,0.00017973,2]
[404074030,1769787044414,-500.0,0.00017973,2]
[404074031,1769787044425,-500.42764262,0.00017973,2]
[404074032,1769787044436,-512.27368738,0.00017973,2]
[404074033,1769787044446,-500.0,0.00017973,2]
[404074034,1769787044457,-501.19732692,0.00017973,2]
[404074035,1769787044467,-165.89161412,0.00017973,2]
[404074036,1769787044477,-500.0,0.00017973,2]
[404074037,1769787044487,-164.73666016,0.00017973,2]
[404074038,1769787044497,-500.0,0.00017973,2]
[404074039,1769787044507,-500.0,0.00017973,2]
[404074040,1769787044518,-533.03696756,0.0001798,2]
[404074041,1769787044579,-248356.63107766,0.0001799,3]
[404074042,1769787044590,-533.03696756,0.0001799,2]
[404074043,1769787044601,-300.0,0.00017999,2]
[404074044,1769787044614,-300.0,0.00017999,2]
[404074045,1769787044628,-300.0,0.00017999,2]
[404074046,1769787044639,-666.0,0.00017999,2]
[404074047,1769787044649,-4123585.54059612,0.00018,2]
[404074048,1769787044738,500.0,0.00012895,2]
[404074049,1769787044841,500.0,0.00012895,2]
[404074050,1769787044911,500.0,0.00012895,2]
[404074051,1769787044971,500.0,0.00012895,2]
[404074052,1769787045031,500.0,0.00012895,2]
[404074053,1769787045098,500.0,0.00012895,2]
[404074054,1769787045113,-536.02667326,0.00016438,2]
[404074055,1769787045123,-500.0,0.00016438,2]
[404074056,1769787045134,-500.0,0.00016438,2]
[404074057,1769787045144,-500.0,0.00016438,2]
[404074058,1769787045156,-500.0,0.00016438,2]
[404074059,1769787045167,-500.0,0.00016438,2]
[404074060,1769787045177,-500.0,0.00016438,2]
[404074061,1769787045187,-500.0,0.00016438,2]
[404074062,1769787045198,-500.0,0.00016438,2]
[404074063,1769787045208,-500.0,0.00016438,2]
[404074064,1769787045219,-12809.80015824,0.00018,2]
[404074065,1769787045278,500.0,0.00012895,2]
[404074066,1769787045336,500.0,0.00012895,2]
[404074067,1769787045407,500.0,0.00012895,2]
[404074068,1769787045465,500.0,0.00012895,2]
[404074069,1769787045516,500.0,0.00012895,2]
[404074070,1769787045573,500.0,0.00012895,2]
[404074071,1769787045629,500.0,0.00012895,2]
[404074072,1769787045693,500.0,0.00012895,2]
[404074074,1769787045831,500.0,0.00012895,2]
[404074085,1769787046158,-522.88632763,0.00013698,2]
[404074086,1769787046168,-500.0,0.00013698,2]
[404074087,1769787046178,-151.0,0.00014914,2]
[404074088,1769787046188,-151.0,0.00014914,2]
[404074089,1769787046198,-429.605811,0.000174,2]
[404074090,1769787046207,-863.01898145,0.00018,2]
[404074091,1769787046400,-1220.60465956,0.00018,2]
[404074092,1769787046413,-533.75455391,0.00018,2]
[404074093,1769787046426,-1487.76514585,0.00018,2]
[404074094,1769787046438,-21057.85432858,0.00018,2]
[404074095,1769787046451,-4431.37655949,0.00018,2]
[404074099,1769787046508,-2761.22392546,0.00018,2]
[404074110,1769787051404,2500.01,0.00012796,2]
[404074111,1769787064445,300.0,0.00012795,2]
[404074113,1769787123678,300.0,0.00012795,2]
[404074114,1769787151575,499.9705,0.00012795,2]
[404074115,1769787170454,8900.0395,0.0001269,2]
[404074116,1769787170481,10000.01,0.0001269,2]
[404074117,1769787170508,10000.01,0.0001269,2]
[404074118,1769787170532,10000.01,0.0001269,2]
[404074119,1769787170557,10000.01,0.0001269,2]
[404074120,1769787170581,10000.01,0.0001269,2]
[404074121,1769787170605,10000.01,0.0001269,2]
[404074122,1769787170630,10000.01,0.0001269,2]
[404074123,1769787170654,10000.01,0.0001269,2]
[404074124,1769787170679,10000.01,0.0001269,2]
[404074125,1769787183486,-300.0,0.00012689,2]
[404074126,1769787183525,-150.0,0.00012689,2]
[404074127,1769787187514,-9596.12769376,0.0001269,2]
[404074128,1769787187621,-10000.01,0.0001269,2]
[404074129,1769787187759,-10000.01,0.0001269,2]
[404074130,1769787187894,-10000.01,0.0001269,2]
[404074131,1769787188025,-10000.01,0.0001269,2]
[404074132,1769787188263,-10000.01,0.0001269,2]
[404074133,1769787188466,-10000.01,0.0001269,2]
[404074134,1769787193229,-10000.01,0.0001269,2]
[404074135,1769787193808,-946.82329331,0.0001269,2]
[404074136,1769787202621,166.48,0.00015,4]
[404074137,1769787204194,166.48,0.000142,5]
[404074138,1769787214841,389.24339139,0.00012696,2]
[404074139,1769787245000,300.0,0.00012795,2]
[404074140,1769787273082,500.0,0.00012795,2]
[404074141,1769787273134,500.0,0.00012795,2]
[404074142,1769787273173,492.10346376,0.00012795,2]
[404074143,1769787273233,154.10781395,0.00012795,2]
[404074144,1769787273379,593.48664885,0.00012795,2]
[404074145,1769787273548,500.0,0.00012795,2]
[404074146,1769787273802,500.0,0.00012795,2]
[404074147,1769787282100,500.0,0.00012795,2]
[404074148,1769787282168,500.0,0.00012795,2]
[404074149,1769787282223,500.0,0.00012795,2]
[404074150,1769787282277,500.0,0.00012795,2]
[404074151,1769787282325,500.0,0.00012795,2]
[404074152,1769787282436,452.15143206,0.00012795,2]
[404074153,1769787282494,500.0,0.00012795,2]
[404074154,1769787283784,207.8994773,0.00012795,2]
[404074155,1769787295977,10000.01,0.00012696,2]
[404074156,1769787296003,10000.01,0.00012696,2]
[404074157,1769787296031,3852.82231967,0.00012696,2]
[404074158,1769787301063,166.4911346,0.00012696,2]
[404074159,1769787302924,417.72240687,0.00012696,2]
[404074160,1769787303647,1200.0,0.00012795,2]
[404074161,1769787317311,500.0,0.00012795,2]
[404074162,1769787317357,500.0,0.00012795,2]
[404074163,1769787317415,500.0,0.00012795,2]
[404074164,1769787317474,500.0,0.00012795,2]
[404074165,1769787317517,500.0,0.00012795,2]
[404074166,1769787317559,500.0,0.00012795,2]
[404074167,1769787317945,500.0,0.00012795,2]
[404074168,1769787317988,500.0,0.00012795,2]
[404074169,1769787318031,362.97413886,0.00012795,2]
[404074170,1769787318060,137.02586114,0.00012795,2]
[404074171,1769787318105,500.0,0.00012795,2]
[404074172,1769787318161,500.0,0.00012795,2]
[404074173,1769787318207,500.0,0.00012795,2]
[404074174,1769787318248,500.0,0.00012795,2]
[404074175,1769787318294,500.0,0.00012795,2]